[Event "Marshall CC U2400 February 2024"]
[Site "New York"]
[Date "2024.02.18"]
[Round "4.2"]
[White "Nkululeko, Nkosi"]
[Black "Gutnik, Aleksandr"]
[Result "1/2-1/2"]
[ECO "C10"]
[WhiteElo "1867"]
[BlackElo "1956"]
[Annotator "RC"]
[PlyCount "137"]
[EventDate "2024.02.16"]
[EventType "swiss"]
[EventCountry "USA"]
[SourceTitle "playchess.com"]
[Source "ChessBase"]
[SourceQuality "1"]
[TimeControl "5400+30"]

1. e4 {[%emt 0:13:16]} e6 {[%emt 0:00:07]} 2. d4 {[%emt 0:00:38]} d5 {[%emt 0:00:08]} 3. Nc3 {[%emt 0:00:03]} dxe4 {[%emt 0:00:19]} 4. Nxe4 {[%emt 0:00:29]} Nf6 {[%emt 0:00:08]} 5. Ng3 {[%emt 0:00:48]} c5 {[%emt 0:02:57]} 6. Nf3 {[%emt 0:01:36]} Nc6 {[%emt 0:00:11]} 7. Be3 {[%emt 0:03:27]} Qb6 {[%emt 0:02:40]} 8. dxc5 {[%emt 0:09:41]} Qxb2 {[%emt 0:01:26]} 9. Bc4 {[%emt 0:05:50]} Qc3+ {[%emt 0:03:37]} 10. Nd2 {[%emt 0:00:12]} Ng4 {[%emt 0:04:52]} 11. Qxg4 {[%emt 0:04:01]} Qxa1+ {[%emt 0:00:11]} 12. Ke2 {[%emt 0:00:04]} Qe5 {[%emt 0:06:02]} 13. f4 {[%emt 0:00:25]} Qc7 {[%emt 0:03:57]} 14. Nh5 {[%emt 0:03:54]} f5 {[%emt 0:04:51]} 15. Qg5 {[%emt 0:07:37]} Qe7 {[%emt 0:01:05]} 16. h4 {[%emt 0:00:49]} Bd7 {[%emt 0:00:51]} 17. Rb1 {[%emt 0:00:29]} O-O-O {[%emt 0:00:35]} 18. Qxe7 {[%emt 0:01:48]} Bxe7 {[%emt 0:03:11]} 19. Nxg7 {[%emt 0:00:39]} Rdg8 {[%emt 0:02:08]} 20. Nxe6 {[%emt 0:00:56]} Rxg2+ {[%emt 0:00:35]} 21. Kf3 {[%emt 0:01:10]} Rg4 {[%emt 0:03:01]} 22. h5 {[%emt 0:09:18]} Rh4 {[%emt 0:08:15]} 23. Bd5 {[%emt 0:02:47]} Rh3+ {[%emt 0:02:42]} 24. Ke2 {[%emt 0:00:36]} Rxh5 {[%emt 0:04:04]} 25. Nf3 {[%emt 0:03:31]} Bxe6 {[%emt 0:05:07]} 26. Bxe6+ {[%emt 0:00:16]} Kc7 {[%emt 0:00:17]} 27. Rg1 {[%emt 0:00:37]} Bf6 {[%emt 0:03:16]} 28. Bg8 {[%emt 0:09:50]} Rh6 {[%emt 0:04:51]} 29. Bd5 {[%emt 0:08:58]} Rg6 {[%emt 0:02:32]} 30. Ng5 {[%emt 0:00:54]} Ne7 {[%emt 0:11:53]} 31. Bf7 {[%emt 0:01:01]} Bxg5 {[%emt 0:00:45]} 32. Bxg6 {[%emt 0:00:26]} hxg6 {[%emt 0:00:28]} 33. Rxg5 {[%emt 0:00:28]} Rh2+ {[%emt 0:01:43]} 34. Kd3 {[%emt 0:03:06]} Rh3 {[%emt 0:00:25]} 35. Ke2 {[%emt 0:00:41]} Nd5 {[%emt 0:03:41]} 36. Bd2 {[%emt 0:00:14]} Nc3+ {[%emt 0:01:30]} 37. Bxc3 {[%emt 0:01:06]} Rxc3 {[%emt 0:00:08]} 38. Kd2 {[%emt 0:00:53]} Rf3 {[%emt 0:00:20]} 39. Rxg6 {[%emt 0:00:11]} Rxf4 {[%emt 0:00:09]} 40. Rf6 {[%emt 0:00:55]} Rf3 {[%emt 0:02:16]} 41. a4 {[%emt 0:00:36]} Ra3 {[%emt 0:00:20]} 42. c6 {[%emt 0:00:57]} bxc6 {[%emt 0:02:02]} 43. Rf7+ {[%emt 0:00:13]} Kb6 {[%emt 0:00:15]} 44. Rxf5 {[%emt 0:00:06]} Rxa4 {[%emt 0:00:10]} 45. Kc3 {[%emt 0:00:11]} Ra5 {[%emt 0:00:26]} 46. Rf8 {[%emt 0:00:11]} Rc5+ {[%emt 0:01:26]} 47. Kb3 {[%emt 0:00:29]} Rb5+ {[%emt 0:00:37]} 48. Ka2 {[%emt 0:01:07]} Kc5 {[%emt 0:00:13]} 49. Rd8 {[%emt 0:03:33]} Kc4 {[%emt 0:00:35]} 50. Rd6 {[%emt 0:01:42]} Rb6 {[%emt 0:00:18]} 51. Rd3 {[%emt 0:00:07]} c5 {[%emt 0:00:58]} 52. Rh3 {[%emt 0:00:14]} a5 {[%emt 0:01:05]} 53. Rg3 {[%emt 0:01:03]} a4 {[%emt 0:01:43]} 54. Rh3 {[%emt 0:00:35]} Kb4 {[%emt 0:01:02]} 55. Kb2 {[%emt 0:02:06]} Rg6 {[%emt 0:00:50]} 56. Rh4+ {[%emt 0:00:26]} Kb5 {[%emt 0:00:22]} 57. Rf4 {[%emt 0:00:59]} Rg3 {[%emt 0:00:29]} 58. Rh4 {[%emt 0:00:18]} a3+ {[%emt 0:03:38]} 59. Ka2 {[%emt 0:00:16]} Rc3 {[%emt 0:00:45]} 60. Rh2 {[%emt 0:00:30]} Kb4 {[%emt 0:00:16]} 61. Rh4+ {[%emt 0:00:56]} c4 {[%emt 0:01:05]} 62. Rh2 {[%emt 0:00:17]} Re3 {[%emt 0:00:39]} 63. Rg2 {[%emt 0:00:14]} Kc3 {[%emt 0:01:16]} 64. Kxa3 {[%emt 0:00:52]} Re1 {[%emt 0:00:16]} 65. Rg3+ {[%emt 0:00:28]} Kxc2 {[%emt 0:00:40]} 66. Kb4 {[%emt 0:00:05]} Re4 {[%emt 0:00:24]} 67. Rc3+ {[%emt 0:00:06]} Kd2 {[%emt 0:00:10]} 68. Rxc4 {[%emt 0:00:03]} Rxc4+ {[%emt 0:00:07]} 69. Kxc4 {[%emt 0:00:04]} 1/2-1/2

[Event "Marshall CC U2400 February 2024"]
[Site "New York"]
[Date "2024.02.18"]
[Round "4.3"]
[White "Rosenthal, Max Manuel"]
[Black "Knowles, Chase"]
[Result "1-0"]
[ECO "C11"]
[WhiteElo "1949"]
[BlackElo "1941"]
[Annotator "RC"]
[PlyCount "127"]
[EventDate "2024.02.16"]
[EventType "swiss"]
[EventCountry "USA"]
[SourceTitle "playchess.com"]
[Source "ChessBase"]
[SourceQuality "1"]
[TimeControl "5400+30"]

1. e4 {[%emt 0:00:04]} e6 {[%emt 0:04:04]} 2. d4 {[%emt 0:00:06]} d5 {[%emt 0:00:11]} 3. Nc3 {[%emt 0:00:05]} Nf6 {[%emt 0:00:05]} 4. e5 {[%emt 0:00:05]} Nfd7 {[%emt 0:00:50]} 5. f4 {[%emt 0:00:10]} c5 {[%emt 0:00:03]} 6. Nf3 {[%emt 0:00:04]} Nc6 {[%emt 0:00:10]} 7. Be3 {[%emt 0:00:05]} a6 {[%emt 0:00:14]} 8. Qd2 {[%emt 0:00:09]} b5 {[%emt 0:00:12]} 9. a3 {[%emt 0:00:05]} Qb6 {[%emt 0:00:29]} 10. dxc5 {[%emt 0:00:06]} Bxc5 {[%emt 0:00:05]} 11. Bxc5 {[%emt 0:00:08]} Nxc5 {[%emt 0:00:10]} 12. b4 {[%emt 0:00:05]} Ne4 {[%emt 0:00:25]} 13. Nxe4 {[%emt 0:00:06]} dxe4 {[%emt 0:00:06]} 14. Ng5 {[%emt 0:00:03]} e3 {[%emt 0:00:16]} 15. Qd6 {[%emt 0:00:10]} Ra7 {[%emt 0:00:38]} 16. Ne4 {[%emt 0:10:00]} Rd7 {[%emt 0:03:54]} 17. Qc5 {[%emt 0:00:07]} Qxc5 {[%emt 0:00:25]} 18. bxc5 {[%emt 0:00:08]} Rd4 {[%emt 0:02:06]} 19. Bd3 {[%emt 0:03:20]} Ke7 {[%emt 0:05:33]} 20. Ke2 {[%emt 0:03:24]} f5 {[%emt 0:12:15]} 21. exf6+ {[%emt 0:01:14]} gxf6 {[%emt 0:00:05]} 22. Kxe3 {[%emt 0:02:13]} f5 {[%emt 0:03:03]} 23. Nd2 {[%emt 0:05:49]} e5 {[%emt 0:05:07]} 24. fxe5 {[%emt 0:05:22]} f4+ {[%emt 0:02:17]} 25. Kf2 {[%emt 0:00:08]} Nxe5 {[%emt 0:00:46]} 26. Rhe1 {[%emt 0:00:05]} Kf6 {[%emt 0:00:51]} 27. Rxe5 {[%emt 0:00:05]} Kxe5 {[%emt 0:01:23]} 28. Nf3+ {[%emt 0:00:05]} Kd5 {[%emt 0:00:07]} 29. Nxd4 {[%emt 0:00:05]} Kxd4 {[%emt 0:00:04]} 30. c6 {[%emt 0:00:32]} Kd5 {[%emt 0:02:07]} 31. a4 {[%emt 0:01:07]} b4 {[%emt 0:04:14]} 32. Rb1 {[%emt 0:00:05]} a5 {[%emt 0:00:31]} 33. Bb5 {[%emt 0:00:19]} Bf5 {[%emt 0:00:37]} 34. Rd1+ {[%emt 0:00:41]} Ke5 {[%emt 0:05:15]} 35. Rd2 {[%emt 0:02:26]} Rc8 {[%emt 0:00:50]} 36. Re2+ {[%emt 0:00:53]} Kd4 {[%emt 0:07:18]} 37. Ke1 {[%emt 0:12:38]} Be4 {[%emt 0:09:12]} 38. Rf2 {[%emt 0:14:36]} Kc3 {[%emt 0:09:46]} 39. Rxf4 {[%emt 0:12:07]} Bxc2 {[%emt 0:00:24]} 40. Rc4+ {[%emt 0:00:13]} Kb2 {[%emt 0:00:25]} 41. c7 {[%emt 0:00:52]} Bf5 {[%emt 0:06:32]} 42. Ba6 {[%emt 0:01:07]} Re8+ {[%emt 0:00:17]} 43. Kd2 {[%emt 0:07:30]} Bc8 {[%emt 0:00:07]} 44. Rc2+ {[%emt 0:00:30]} Ka3 {[%emt 0:04:58]} 45. Bc4 {[%emt 0:01:11]} b3 {[%emt 0:00:05]} 46. Rc3 {[%emt 0:00:14]} Kxa4 {[%emt 0:04:34]} 47. Bxb3+ {[%emt 0:03:06]} Kb4 {[%emt 0:00:09]} 48. Bc2 {[%emt 0:07:16]} a4 {[%emt 0:01:54]} 49. h3 {[%emt 0:02:29]} Re7 {[%emt 0:02:51]} 50. g4 {[%emt 0:05:03]} Rf7 {[%emt 0:02:15]} 51. Bf5 {[%emt 0:02:44]} a3 {[%emt 0:03:49]} 52. Rc2 {[%emt 0:00:08]} a2 {[%emt 0:01:50]} 53. Rxa2 {[%emt 0:00:44]} Bxf5 {[%emt 0:00:30]} 54. gxf5 {[%emt 0:00:04]} Rxc7 {[%emt 0:00:07]} 55. Rb2+ {[%emt 0:00:14]} Ka4 {[%emt 0:00:29]} 56. Ke3 {[%emt 0:00:13]} Rc3+ {[%emt 0:00:54]} 57. Kf4 {[%emt 0:00:10]} Rxh3 {[%emt 0:00:13]} 58. f6 {[%emt 0:00:10]} Rh1 {[%emt 0:00:19]} 59. Rf2 {[%emt 0:00:07]} Rb1 {[%emt 0:00:32]} 60. f7 {[%emt 0:00:24]} Rb8 {[%emt 0:00:20]} 61. Kg5 {[%emt 0:00:11]} Rf8 {[%emt 0:00:39]} 62. Kh6 {[%emt 0:00:06]} Kb5 {[%emt 0:00:17]} 63. Kxh7 {[%emt 0:00:08]} Kc6 {[%emt 0:00:10]} 64. Kg7 {[%emt 0:00:36]} 1-0

[Event "Marshall CC U2400 February 2024"]
[Site "New York"]
[Date "2024.02.18"]
[Round "4.4"]
[White "Ulloa Grez, Luis"]
[Black "Creswell, Charlie"]
[Result "1-0"]
[ECO "A23"]
[WhiteElo "2048"]
[BlackElo "1769"]
[Annotator "RC"]
[PlyCount "117"]
[EventDate "2024.02.16"]
[EventType "swiss"]
[EventCountry "USA"]
[SourceTitle "playchess.com"]
[Source "ChessBase"]
[SourceQuality "1"]
[TimeControl "5400+30"]

1. c4 {[%emt 0:03:34]} e5 {[%emt 0:00:05]} 2. g3 {[%emt 0:00:09]} c6 {[%emt 0:00:02]} 3. Nf3 {[%emt 0:03:02]} e4 {[%emt 0:00:13]} 4. Nd4 {[%emt 0:00:09]} Nf6 {[%emt 0:00:28]} 5. Nc3 {[%emt 0:01:29]} Bb4 {[%emt 0:01:47]} 6. Qc2 {[%emt 0:09:43]} Qe7 {[%emt 0:03:15]} 7. b3 {[%emt 0:04:39]} O-O {[%emt 0:00:23]} 8. Bb2 {[%emt 0:01:25]} d5 {[%emt 0:01:12]} 9. e3 {[%emt 0:08:10]} Na6 {[%emt 0:06:07]} 10. a3 {[%emt 0:03:45]} Bxc3 {[%emt 0:00:44]} 11. Bxc3 {[%emt 0:00:38]} Rd8 {[%emt 0:02:21]} 12. cxd5 {[%emt 0:01:23]} cxd5 {[%emt 0:00:52]} 13. Bxa6 {[%emt 0:01:06]} bxa6 {[%emt 0:00:11]} 14. Nc6 {[%emt 0:00:18]} Qc7 {[%emt 0:01:38]} 15. Ba5 {[%emt 0:00:24]} Qd6 {[%emt 0:01:49]} 16. Bxd8 {[%emt 0:02:18]} Ng4 {[%emt 0:01:32]} 17. h3 {[%emt 0:01:33]} Nh6 {[%emt 0:03:29]} 18. Bg5 {[%emt 0:02:15]} Nf5 {[%emt 0:01:46]} 19. g4 {[%emt 0:01:28]} Bd7 {[%emt 0:01:41]} 20. Nd4 {[%emt 0:02:12]} Nxd4 {[%emt 0:01:04]} 21. exd4 {[%emt 0:00:09]} h6 {[%emt 0:02:11]} 22. Be3 {[%emt 0:00:47]} Bb5 {[%emt 0:00:25]} 23. a4 {[%emt 0:07:59]} Bd3 {[%emt 0:00:44]} 24. Qc3 {[%emt 0:01:40]} f5 {[%emt 0:05:26]} 25. f4 {[%emt 0:08:22]} g5 {[%emt 0:03:03]} 26. Rc1 {[%emt 0:06:52]} gxf4 {[%emt 0:00:46]} 27. Qc7 {[%emt 0:00:15]} Qxc7 {[%emt 0:05:55]} 28. Rxc7 {[%emt 0:00:07]} fxe3 {[%emt 0:00:02]} 29. dxe3 {[%emt 0:00:07]} Rb8 {[%emt 0:00:50]} 30. Rc3 {[%emt 0:04:55]} fxg4 {[%emt 0:00:29]} 31. hxg4 {[%emt 0:00:08]} Rb6 {[%emt 0:01:13]} 32. Rh5 {[%emt 0:00:47]} Rf6 {[%emt 0:00:40]} 33. Rxd5 {[%emt 0:01:33]} Rf1+ {[%emt 0:00:10]} 34. Kd2 {[%emt 0:00:06]} Rf2+ {[%emt 0:01:34]} 35. Kc1 {[%emt 0:00:27]} Rf7 {[%emt 0:04:14]} 36. Rc6 {[%emt 0:02:35]} Kg7 {[%emt 0:00:34]} 37. g5 {[%emt 0:00:30]} h5 {[%emt 0:00:26]} 38. g6 {[%emt 0:00:20]} Rf1+ {[%emt 0:00:19]} 39. Kb2 {[%emt 0:00:07]} h4 {[%emt 0:01:01]} 40. Rd7+ {[%emt 0:00:32]} Kg8 {[%emt 0:00:13]} 41. g7 {[%emt 0:00:18]} Rf7 {[%emt 0:00:51]} 42. Rxf7 {[%emt 0:00:14]} Kxf7 {[%emt 0:00:02]} 43. Rh6 {[%emt 0:00:18]} Kxg7 {[%emt 0:00:18]} 44. Rxh4 {[%emt 0:00:06]} Kf6 {[%emt 0:00:11]} 45. Kc3 {[%emt 0:00:07]} Kg5 {[%emt 0:00:01]} 46. Rh7 {[%emt 0:00:07]} Kf6 {[%emt 0:00:25]} 47. Rxa7 {[%emt 0:00:06]} Ke6 {[%emt 0:00:05]} 48. b4 {[%emt 0:00:14]} Kd6 {[%emt 0:00:08]} 49. Rg7 {[%emt 0:00:10]} Kd5 {[%emt 0:00:10]} 50. Rg5+ {[%emt 0:00:20]} Kd6 {[%emt 0:00:02]} 51. b5 {[%emt 0:00:08]} axb5 {[%emt 0:00:06]} 52. axb5 {[%emt 0:00:04]} Kc7 {[%emt 0:00:01]} 53. Kb4 {[%emt 0:00:09]} Kb7 {[%emt 0:00:23]} 54. Kc5 {[%emt 0:00:05]} Bf1 {[%emt 0:00:05]} 55. Rg7+ {[%emt 0:00:04]} Kc8 {[%emt 0:00:04]} 56. Kc6 {[%emt 0:00:08]} Kb8 {[%emt 0:00:04]} 57. b6 {[%emt 0:00:06]} Ba6 {[%emt 0:00:08]} 58. Rg8+ {[%emt 0:00:18]} Bc8 {[%emt 0:00:03]} 59. Rh8 {[%emt 0:00:07]} 1-0

[Event "Marshall CC U2400 February 2024"]
[Site "New York"]
[Date "2024.02.18"]
[Round "4.5"]
[White "Qiao, Richardson Jingsi"]
[Black "Colwell, Andrew"]
[Result "1-0"]
[ECO "B12"]
[WhiteElo "1564"]
[BlackElo "1672"]
[Annotator "NA RC"]
[PlyCount "145"]
[EventDate "2024.02.16"]
[EventType "swiss"]
[EventCountry "USA"]
[SourceTitle "playchess.com"]
[Source "ChessBase"]
[SourceQuality "1"]
[TimeControl "5400+30"]

1. e4 {[%emt 0:00:04]} c6 {[%emt 0:00:03]} 2. d4 {[%emt 0:00:24]} d5 {[%emt 0:00:03]} 3. e5 {[%emt 0:00:38]} c5 {[%emt 0:00:02]} 4. dxc5 {[%emt 0:00:41]} e6 {[%emt 0:00:04]} 5. a3 {[%emt 0:00:42]} Bxc5 {[%emt 0:00:08]} 6. Qg4 {[%emt 0:00:41]} Kf8 {[%emt 0:16:27]} 7. Nf3 {[%emt 0:05:49]} Qb6 {[%emt 0:06:37]} 8. Qg3 {[%emt 0:04:56]} Ne7 {[%emt 0:10:02]} 9. Bd3 {[%emt 0:03:00]} Ng6 {[%emt 0:09:21]} 10. b4 {[%emt 0:04:07]} Be7 {[%emt 0:03:40]} 11. h4 {[%emt 0:05:42]} Nc6 {[%emt 0:02:13]} 12. Bb2 {[%emt 0:02:09]} h5 {[%emt 0:10:50]} 13. Bxg6 {[%emt 0:03:09]} fxg6 {[%emt 0:00:05]} 14. Qxg6 {[%emt 0:00:50]} Rh6 {[%emt 0:01:01]} 15. Qg3 {[%emt 0:02:05]} Bd7 {[%emt 0:00:54]} 16. Bc1 {[%emt 0:03:38]} Rh7 {[%emt 0:05:49]} 17. O-O {[%emt 0:03:10]} Nd4 {[%emt 0:01:04]} 18. Qf4+ {[%emt 0:01:10]} Nf5 {[%emt 0:00:11]} 19. Be3 {[%emt 0:00:29]} Qd8 {[%emt 0:00:07]} 20. g3 {[%emt 0:00:50]} Kg8 {[%emt 0:00:57]} 21. Nd4 {[%emt 0:01:49]} Nxd4 {[%emt 0:00:13]} 22. Bxd4 {[%emt 0:02:10]} Rh6 {[%emt 0:00:32]} 23. Qf3 {[%emt 0:00:45]} Qc7 {[%emt 0:01:18]} 24. c3 {[%emt 0:01:20]} Bb5 {[%emt 0:00:23]} 25. Re1 {[%emt 0:00:43]} Rf8 {[%emt 0:00:11]} 26. Qd1 {[%emt 0:01:50]} Rf5 {[%emt 0:01:58]} 27. a4 {[%emt 0:01:37]} Be8 {[%emt 0:04:11]} 28. Kh2 {[%emt 0:04:07]} Rg6 {[%emt 0:04:53]} 29. Nd2 {[%emt 0:04:11]} Rg4 {[%emt 0:03:10]} 30. Nf1 {[%emt 0:06:48]} Rg6 {[%emt 0:03:47]} 31. Ra2 {[%emt 0:02:24]} Bxh4 {[%emt 0:04:20]} 32. Ne3 {[%emt 0:02:24]} Rxf2+ {[%emt 0:05:57]} 33. Rxf2 {[%emt 0:00:20]} Bxg3+ {[%emt 0:00:02]} 34. Kg2 {[%emt 0:00:39]} Qe7 {[%emt 0:00:55]} 35. Qf3 {[%emt 0:01:10]} Bxf2+ {[%emt 0:03:18]} 36. Kxf2 {[%emt 0:00:14]} Qh4+ {[%emt 0:00:05]} 37. Ke2 {[%emt 0:00:41]} Rg3 {[%emt 0:01:06]} 38. Qf2 {[%emt 0:01:37]} Qg5 {[%emt 0:00:08]} 39. Rf1 {[%emt 0:04:48]} Bxa4 {[%emt 0:00:15]} 40. Qf7+ {[%emt 0:00:23]} Kh7 {[%emt 0:00:07]} 41. Qxe6 {[%emt 0:01:37]} Bb5+ {[%emt 0:00:30]} 42. c4 {[%emt 0:00:35]} dxc4 {[%emt 0:01:17]} 43. Qf5+ {[%emt 0:00:18]} Qxf5 {[%emt 0:00:29]} 44. Rxf5 {[%emt 0:00:51]} Kg6 {[%emt 0:00:51]} 45. Rf8 {[%emt 0:02:00]} c3+ {[%emt 0:01:13]} 46. Kf2 {[%emt 0:00:52]} c2 {[%emt 0:00:30]} 47. Nxc2 {[%emt 0:00:43]} Rd3 {[%emt 0:00:11]} 48. Ke1 {[%emt 0:01:20]} Ba4 {[%emt 0:00:20]} 49. e6 {[%emt 0:02:24]} Bxc2 {[%emt 0:00:43]} 50. e7 {[%emt 0:00:38]} Ba4 {[%emt 0:00:03]} 51. Bxa7 {[%emt 0:00:38]} Rd5 {[%emt 0:00:24]} 52. e8=Q+ {[%emt 0:00:35]} Bxe8 {[%emt 0:00:08]} 53. Rxe8 {[%emt 0:00:07]} Rb5 {[%emt 0:00:51]} 54. Bc5 {[%emt 0:00:18]} Kf7 {[%emt 0:01:34]} 55. Rd8 {[%emt 0:01:11]} Ke6 {[%emt 0:00:34]} 56. Kf2 {[%emt 0:01:13]} g5 {[%emt 0:00:20]} 57. Kg3 {[%emt 0:01:14]} Ke5 {[%emt 0:00:13]} 58. Rh8 {[%emt 0:02:06]} Kd5 {[%emt 0:00:34]} 59. Rxh5 {[%emt 0:00:26]} b6 {[%emt 0:00:30]} 60. Rxg5+ {[%emt 0:00:38]} Kc6 {[%emt 0:01:09]} 61. Be7 {[%emt 0:00:32]} Rd5 {[%emt 0:01:32]} 62. Rxd5 {[%emt 0:00:09]} Kxd5 {[%emt 0:00:01]} 63. Kf4 {[%emt 0:00:21]} Kd4 {[%emt 0:00:46]} 64. Kf5 {[%emt 0:00:39]} Kd5 {[%emt 0:00:11]} 65. Bf8 {[%emt 0:00:11]} Kd4 {[%emt 0:00:55]} 66. Ke6 {[%emt 0:00:07]} Kc4 {[%emt 0:00:05]} 67. Kd7 {[%emt 0:00:09]} Kb5 {[%emt 0:00:59]} 68. Kc7 {[%emt 0:00:34]} Ka6 {[%emt 0:00:07]} 69. Kc6 {[%emt 0:00:19]} b5 {[%emt 0:00:36]} 70. Be7 {[%emt 0:00:05]} Ka7 {[%emt 0:00:03]} 71. Kxb5 {[%emt 0:00:07]} Kb7 {[%emt 0:00:03]} 72. Bd6 {[%emt 0:00:16]} Ka7 {[%emt 0:00:15]} 73. Kc6 {[%emt 0:00:21]} 1-0

[Event "Marshall CC U2400 February 2024"]
[Site "New York"]
[Date "2024.02.19"]
[Round "5.1"]
[White "Jiang, Jason"]
[Black "Nkululeko, Nkosi"]
[Result "1/2-1/2"]
[ECO "E69"]
[WhiteElo "1864"]
[BlackElo "1867"]
[Annotator "NA RC"]
[PlyCount "93"]
[EventDate "2024.02.16"]
[EventType "swiss"]
[EventCountry "USA"]
[SourceTitle "playchess.com"]
[Source "ChessBase"]
[SourceQuality "1"]
[TimeControl "5400+30"]

1. c4 {[%emt 0:00:33]} Nf6 {[%emt 0:00:05]} 2. Nc3 {[%emt 0:00:05]} g6 {[%emt 0:00:15]} 3. g3 {[%emt 0:00:14]} Bg7 {[%emt 0:00:31]} 4. Bg2 {[%emt 0:00:14]} O-O {[%emt 0:00:09]} 5. Nf3 {[%emt 0:00:13]} d6 {[%emt 0:00:23]} 6. d4 {[%emt 0:00:21]} Nbd7 {[%emt 0:00:47]} 7. O-O {[%emt 0:00:16]} c6 {[%emt 0:00:21]} 8. e4 {[%emt 0:00:48]} e5 {[%emt 0:00:22]} 9. h3 {[%emt 0:01:06]} Qe7 {[%emt 0:00:31]} 10. b3 {[%emt 0:00:51]} c5 {[%emt 0:05:39]} 11. dxe5 {[%emt 0:02:47]} Nxe5 {[%emt 0:00:40]} 12. Bb2 {[%emt 0:02:21]} a6 {[%emt 0:02:27]} 13. Nxe5 {[%emt 0:06:11]} dxe5 $16 {[%emt 0:00:26]} 14. Qe2 {[%emt 0:01:44]} Be6 {[%emt 0:03:27]} 15. Rae1 {[%emt 0:02:56]} Rae8 {[%emt 0:02:12]} 16. Nd5 {[%emt 0:02:48]} Nxd5 {[%emt 0:00:34]} 17. exd5 {[%emt 0:00:17]} Bc8 {[%emt 0:00:18]} 18. f4 {[%emt 0:01:39]} f6 {[%emt 0:00:33]} 19. Kh2 {[%emt 0:01:37]} Qd6 {[%emt 0:00:48]} 20. fxe5 {[%emt 0:01:34]} fxe5 {[%emt 0:00:12]} 21. Rxf8+ {[%emt 0:00:29]} Kxf8 {[%emt 0:00:03]} 22. Be4 {[%emt 0:02:19]} Kg8 {[%emt 0:00:52]} 23. Rf1 {[%emt 0:03:35]} Bd7 {[%emt 0:03:40]} 24. a4 {[%emt 0:05:55]} a5 {[%emt 0:00:15]} 25. Bc3 {[%emt 0:00:46]} b6 {[%emt 0:00:03]} 26. Bd2 {[%emt 0:00:51]} Rf8 {[%emt 0:00:30]} 27. Rxf8+ {[%emt 0:01:32]} Bxf8 {[%emt 0:00:59]} 28. Qf3 {[%emt 0:01:23]} Be7 {[%emt 0:01:30]} 29. Kg2 {[%emt 0:02:20]} Qf6 {[%emt 0:01:11]} 30. g4 {[%emt 0:02:59]} Qxf3+ {[%emt 0:16:27]} 31. Kxf3 {[%emt 0:00:08]} Kg7 {[%emt 0:00:05]} 32. Be1 {[%emt 0:00:58]} h6 {[%emt 0:01:01]} 33. Bg3 {[%emt 0:00:43]} Bd6 {[%emt 0:59:44]} 34. Bh4 {[%emt 0:00:18]} g5 {[%emt 0:00:00]} 35. Be1 {[%emt 0:01:16]} Kf6 {[%emt 0:00:00]} 36. Bd2 {[%emt 0:00:26]} Bc8 {[%emt 0:00:00]} 37. Bh7 {[%emt 0:02:32]} Bd7 {[%emt 0:00:00]} 38. Ke4 {[%emt 0:01:34]} Be8 {[%emt 0:00:00]} 39. Bf5 {[%emt 0:00:37]} Bf7 {[%emt 0:00:00]} 40. Be1 {[%emt 0:01:11]} Be8 {[%emt 0:00:00]} 41. h4 {[%emt 0:00:36]} Bf7 {[%emt 0:00:00]} 42. h5 {[%emt 0:00:07]} Be8 {[%emt 0:00:00]} 43. Be6 {[%emt 0:00:27]} Bb8 {[%emt 0:00:00]} 44. Bf5 {[%emt 0:00:27]} Bd6 {[%emt 0:00:00]} 45. Be6 {[%emt 0:00:03]} Bb8 {[%emt 0:00:00]} 46. Bf5 {[%emt 0:00:03]} Bd6 {[%emt 0:00:00]} 47. Be6 {[%emt 0:00:06]} 1/2-1/2

[Event "Marshall CC U2400 February 2024"]
[Site "New York"]
[Date "2024.02.18"]
[Round "5.1"]
[White "Jiang, Jason"]
[Black "Nkululeko, Nkosi"]
[Result "*"]
[ECO "E69"]
[WhiteElo "1864"]
[BlackElo "1867"]
[Annotator "NA RC"]
[PlyCount "43"]
[EventDate "2024.02.16"]
[EventType "swiss"]
[EventCountry "USA"]
[SourceTitle "playchess.com"]
[Source "ChessBase"]
[SourceQuality "1"]
[TimeControl "5400+30"]

1. c4 {[%emt 0:00:33]} Nf6 {[%emt 0:00:05]} 2. Nc3 {[%emt 0:00:05]} g6 {[%emt 0:00:15]} 3. g3 {[%emt 0:00:14]} Bg7 {[%emt 0:00:31]} 4. Bg2 {[%emt 0:00:14]} O-O {[%emt 0:00:09]} 5. Nf3 {[%emt 0:00:13]} d6 {[%emt 0:00:23]} 6. d4 {[%emt 0:00:21]} Nbd7 {[%emt 0:00:47]} 7. O-O {[%emt 0:00:16]} c6 {[%emt 0:00:21]} 8. e4 {[%emt 0:00:48]} e5 {[%emt 0:00:22]} 9. h3 {[%emt 0:01:06]} Qe7 {[%emt 0:00:31]} 10. b3 {[%emt 0:00:51]} c5 {[%emt 0:05:39]} 11. dxe5 {[%emt 0:02:47]} Nxe5 {[%emt 0:00:40]} 12. Bb2 {[%emt 1:29:02]} a6 {[%emt 0:02:27]} 13. Nxe5 {[%emt 0:06:11]} dxe5 $16 {[%emt 0:00:26]} 14. Qe2 {[%emt 0:01:44]} Be6 {[%emt 0:03:27]} 15. Rae1 {[%emt 0:02:56]} Rae8 {[%emt 0:02:12]} 16. Nd5 {[%emt 0:02:48]} Nxd5 {[%emt 0:00:34]} 17. exd5 {[%emt 0:00:17]} Bc8 {[%emt 0:00:18]} 18. f4 {[%emt 0:01:39]} f6 {[%emt 1:20:23]} 19. Kh2 {[%emt 0:01:37]} Qd6 {[%emt 0:00:48]} 20. fxe5 {[%emt 0:01:34]} fxe5 {[%emt 0:00:12]} 21. Rf2 {[%emt 1:12:25]} Rf7 22. Rxf7 {[%emt 0:00:00]} *